fUSD/lending_fUSD_20240319
["ID","MTS","AMOUNT","RATE_DAILY","PERIOD"]
[319527930,1710827476783,-500.0,0.00055068,120]
[319527931,1710827476794,-500.0,0.00055068,120]
[319527932,1710827476804,-500.0,0.00055068,120]
[319527933,1710827476815,-1200.6,0.00055068,120]
[319527934,1710827476826,-500.0,0.00055068,120]
[319527935,1710827476837,-500.0,0.00055068,120]
[319527936,1710827476847,-1037.55,0.00055068,120]
[319527937,1710827476858,-500.0,0.00055068,120]
[319527938,1710827476868,-10993.53,0.00055068,120]
[319527939,1710827476879,-1040.71,0.00055068,120]
[319527940,1710827476890,-2840.09,0.00055068,120]
[319527941,1710827476901,-500.0,0.00055068,120]
[319527942,1710827476914,-500.0,0.00055068,120]
[319527943,1710827476926,-2830.68,0.00055068,120]
[319527944,1710827476938,-2822.24,0.00055068,120]
[319527945,1710827476949,-646.52,0.00055068,120]
[319527946,1710827476960,-2123.57,0.00055068,120]
[319527947,1710827476973,-1966.25,0.00055068,120]
[319527948,1710827476984,-500.0,0.00055068,120]
[319527949,1710827476995,-649.44,0.00055068,120]
[319527950,1710827477006,-500.0,0.00055068,120]
[319527951,1710827477018,-500.0,0.00055068,120]
[319527952,1710827477028,-1047.73,0.00055068,120]
[319527953,1710827477038,-1134.96,0.00055068,120]
[319527954,1710827477049,-500.0,0.00055068,120]
[319527955,1710827477060,-500.0,0.00055068,120]
[319527956,1710827477071,-500.0,0.00055068,120]
[319527957,1710827477082,-500.0,0.00055068,120]
[319527958,1710827477093,-3745.32,0.00055068,120]
[319527959,1710827477104,-500.0,0.00055068,120]
[319527960,1710827477117,-500.0,0.00055068,120]
[319527961,1710827477127,-1379.72,0.00055068,120]
[319527962,1710827477137,-500.0,0.00055068,120]
[319527963,1710827477147,-500.0,0.00055068,120]
[319527964,1710827477157,-1229.29,0.00055068,120]
[319527965,1710827477167,-500.0,0.00055068,120]
[319527966,1710827477177,-505.86875198,0.00055068,120]
[319527967,1710827477187,-184.21095891,0.00055068,120]
[319527968,1710827477197,-743.99,0.00055068,120]
[319527969,1710827477206,-500.0,0.00055068,120]
[319527970,1710827477216,-500.0,0.00055068,120]
[319527971,1710827477232,-628.13,0.00055068,120]
[319527972,1710827477242,-1973.36,0.00055068,120]
[319527973,1710827477251,-850.45,0.00055068,120]
[319527974,1710827477261,-643.65,0.00055068,120]
[319527975,1710827477271,-1436.94,0.00055068,120]
[319527976,1710827477280,-1623.87,0.00055068,120]
[319527977,1710827477290,-500.0,0.00055068,120]
[319527978,1710827477300,-2995.94,0.00055068,120]
[319527979,1710827477311,-1386.7,0.00055068,120]
[319527980,1710827477322,-1797.16,0.00055068,120]
[319527981,1710827477333,-1038.84,0.00055068,120]
[319527982,1710827477343,-653.57,0.00055068,120]
[319527983,1710827477352,-6815.41,0.00055068,120]
[319527984,1710827477363,-500.0,0.00055068,120]
[319527985,1710827477373,-500.0,0.00055068,120]
[319527986,1710827477383,-500.0,0.00055068,120]
[319527987,1710827477393,-844.11,0.00055068,120]
[319527988,1710827477403,-353.44200255,0.00055068,120]
[319527989,1710827477413,-500.0,0.00055068,120]
[319527990,1710827477424,-500.0,0.00055068,120]
[319527991,1710827477435,-2518.17,0.00055068,21]
[319527992,1710827477445,-500.0,0.00055068,120]
[319527993,1710827477455,-500.0,0.00055068,120]
[319527994,1710827477466,-500.0,0.00055068,120]
[319527995,1710827477480,-500.0,0.00055068,120]
[319527996,1710827477491,-1249.47,0.00055068,120]
[319527997,1710827477501,-8128.88,0.00055068,120]
[319527998,1710827477512,-644.09,0.00055068,120]
[319527999,1710827477523,-2104.14,0.00055068,120]
[319528000,1710827477534,-500.0,0.00055068,120]
[319528001,1710827477544,-500.0,0.00055068,120]
[319528002,1710827477555,-520.51,0.00055068,120]
[319528003,1710827477565,-500.0,0.00055068,120]
[319528004,1710827477576,-500.0,0.00055068,120]
[319528005,1710827477587,-500.0,0.00055068,120]
[319528006,1710827477598,-523.88,0.00055068,120]
[319528007,1710827477610,-4987.59,0.00055068,120]
[319528008,1710827477621,-1329.62,0.00055068,120]
[319528009,1710827477633,-500.0,0.00055068,120]
[319528010,1710827477644,-500.0,0.00055068,120]
[319528011,1710827477656,-2650.41,0.00055068,120]
[319528012,1710827477667,-500.0,0.00055068,120]
[319528013,1710827477678,-2122.55,0.00055068,120]
[319528014,1710827477689,-8315.42,0.00055068,120]
[319528015,1710827477700,-8238.56,0.00055068,120]
[319528016,1710827477710,-882.83,0.00055068,120]
[319528017,1710827477725,-500.0,0.00055068,120]
[319528018,1710827477736,-500.0,0.00055068,120]
[319528019,1710827477747,-1643.06,0.00055068,120]
[319528020,1710827477757,-500.0,0.00055068,120]
[319528021,1710827477771,-500.0,0.00055068,120]
[319528022,1710827477781,-870.48,0.00055068,120]
[319528023,1710827477791,-500.0,0.00055068,120]
[319528024,1710827477802,-3569.24,0.00055068,120]
[319528025,1710827477813,-500.0,0.00055068,120]
[319528026,1710827477823,-500.0,0.00055068,120]
[319528027,1710827477842,-884.71,0.00055068,120]
[319528028,1710827477855,-500.0,0.00055068,120]
[319528029,1710827477866,-3795.75,0.00055068,120]
[319528030,1710827477877,-508.55852168,0.00055068,120]
[319528031,1710827477888,-500.0,0.00055068,120]
[319528032,1710827477902,-500.0,0.00055068,120]
[319528033,1710827477916,-1136.5,0.00055068,120]
[319528034,1710827477928,-500.0,0.00055068,120]
[319528035,1710827477939,-1245.02,0.00055068,120]
[319528036,1710827477951,-1319.6,0.00055068,120]
[319528037,1710827477962,-500.0,0.00055068,120]
[319528038,1710827477977,-4709.5,0.00055068,120]
[319528039,1710827477988,-500.0,0.00055068,120]
[319528040,1710827477999,-2980.53,0.00055068,120]
[319528041,1710827478011,-1151.39,0.00055068,120]
[319528042,1710827478021,-500.0,0.00055068,120]
[319528043,1710827478032,-500.0,0.00055068,120]
[319528044,1710827478042,-500.0,0.00055068,120]
[319528045,1710827478053,-500.0,0.00055068,120]
[319528046,1710827478064,-500.0,0.00055068,120]
[319528047,1710827478074,-500.0,0.00055068,120]
[319528048,1710827478084,-265.63540831,0.00055068,120]
[319528049,1710827478094,-8508.21,0.00055068,120]
[319528050,1710827478105,-1105.32,0.00055068,120]
[319528051,1710827478116,-1495.81,0.00055068,120]
[319528052,1710827478127,-643.14,0.00055068,120]
[319528053,1710827478137,-553.8,0.00055068,120]
[319528054,1710827478147,-500.0,0.00055068,120]
[319528055,1710827478158,-500.0,0.00055068,120]
[319528056,1710827478168,-500.0,0.00055068,120]
[319528057,1710827478179,-500.0,0.00055068,120]
[319528058,1710827478189,-500.0,0.00055068,120]
[319528059,1710827478199,-998.57,0.00055068,120]
[319528060,1710827478210,-769.96,0.00055068,120]
[319528061,1710827478225,-500.0,0.00055068,120]
[319528062,1710827478237,-500.0,0.00055068,120]
[319528063,1710827478247,-500.0,0.00055068,120]
[319528064,1710827478258,-954.53,0.00055068,120]
[319528065,1710827478269,-500.0,0.00055068,120]
[319528066,1710827478280,-13738.43,0.00055068,120]
[319528067,1710827478290,-500.0,0.00055068,120]
[319528068,1710827478300,-2114.35,0.00055068,120]
[319528069,1710827478311,-500.0,0.00055068,120]
[319528070,1710827478321,-500.0,0.00055068,120]
[319528071,1710827478331,-1410.75,0.00055068,120]
[319528072,1710827478342,-2607.41,0.00055068,120]
[319528073,1710827478352,-500.0,0.00055068,120]
[319528074,1710827478362,-500.0,0.00055068,120]
[319528075,1710827478372,-636.29,0.00055068,120]
[319528076,1710827478383,-4751.34,0.00055068,120]
[319528077,1710827478393,-1049.03,0.00055068,120]
[319528078,1710827478403,-500.0,0.00055068,120]
[319528079,1710827478414,-958.9,0.00055068,120]
[319528080,1710827478424,-500.0,0.00055068,120]
[319528081,1710827478435,-460.34877405,0.00055068,120]
[319528082,1710827478445,-2780.44,0.00055068,120]
[319528083,1710827478455,-500.0,0.00055068,120]
[319528084,1710827478466,-500.0,0.00055068,120]
[319528085,1710827478482,-500.0,0.00055068,120]
[319528086,1710827478493,-500.0,0.00055068,120]
[319528087,1710827478503,-500.0,0.00055068,120]
[319528088,1710827478514,-4283.42,0.00055068,120]
[319528089,1710827478524,-591.34,0.00055068,120]
[319528090,1710827478536,-1025.59,0.00055068,120]
[319528091,1710827478546,-500.0,0.00055068,120]
[319528092,1710827478557,-2199.95,0.00055068,120]
[319528093,1710827478568,-634.14,0.00055068,120]
[319528094,1710827478578,-500.0,0.00055068,120]
[319528095,1710827478589,-14611.2,0.00055068,120]
[319528096,1710827478600,-500.0,0.00055068,120]
[319528097,1710827478611,-1893.62,0.00055068,120]
[319528098,1710827478622,-836.76,0.00055068,120]
[319528099,1710827478632,-500.0,0.00055068,120]
[319528100,1710827478642,-500.0,0.00055068,120]
[319528101,1710827478652,-1421.89,0.00055068,7]
[319528102,1710827478662,-3835.86,0.00055068,120]
[319528103,1710827478672,-500.0,0.00055068,120]
[319528104,1710827478683,-1442.15,0.00055068,120]
[319528105,1710827478693,-500.0,0.00055068,120]
[319528106,1710827478703,-500.0,0.00055068,120]
[319528107,1710827478714,-500.0,0.00055068,120]
[319528108,1710827478728,-1144.33,0.00055068,120]
[319528109,1710827478738,-500.0,0.00055068,120]
[319528110,1710827478748,-5234.98,0.00055068,120]
[319528111,1710827478758,-500.0,0.00055068,120]
[319528112,1710827478773,-861.0,0.00055068,120]
[319528113,1710827478783,-150.0,0.00055068,120]
[319528114,1710827478793,-504.19046437,0.00055068,120]
[319528115,1710827478804,-500.0,0.00055068,120]
[319528116,1710827478815,-614.75,0.00055068,120]
[319528117,1710827478826,-584.01,0.00055068,120]
[319528118,1710827478836,-783.51,0.00055068,120]
[319528119,1710827478847,-500.0,0.00055068,120]
[319528120,1710827478858,-3537.98,0.00055068,120]
[319528121,1710827478869,-1756.93,0.00055068,120]
[319528122,1710827478879,-2591.17,0.00055068,120]
[319528123,1710827479161,-500.0,0.00055068,120]
[319528124,1710827479194,-528.69,0.00055068,120]
[319528125,1710827479205,-7694.82,0.00055068,120]
[319528126,1710827479217,-1601.56,0.00055068,120]
[319528127,1710827479232,-500.0,0.00055068,120]
[319528128,1710827479243,-1099.11,0.00055068,120]
[319528129,1710827479253,-500.0,0.00055068,120]
[319528130,1710827479263,-521.58,0.00055068,120]
[319528131,1710827479273,-1409.19,0.00055068,120]
[319528132,1710827479283,-2132.44,0.00055068,120]
[319528133,1710827479293,-1549.94,0.00055068,120]
[319528134,1710827479303,-638.76,0.00055068,120]
[319528135,1710827479313,-500.0,0.00055068,120]
[319528136,1710827479322,-1035.89,0.00055068,120]
[319528137,1710827479332,-500.0,0.00055068,120]
[319528138,1710827479342,-790.23,0.00055068,120]
[319528139,1710827479351,-508.38283576,0.00055068,120]
[319528140,1710827479361,-500.0,0.00055068,120]
[319528141,1710827479371,-500.0,0.00055068,120]
[319528142,1710827479381,-1004.37,0.00055068,120]
[319528143,1710827479390,-2332.1,0.00055068,120]
[319528144,1710827479400,-7065.9,0.00055068,120]
[319528145,1710827479410,-500.0,0.00055068,120]
[319528146,1710827479419,-974.26,0.00055068,120]
[319528147,1710827479429,-2467.87,0.00055068,120]
[319528148,1710827479439,-500.0,0.00055068,120]
[319528149,1710827479448,-6649.21,0.00055068,120]
[319528150,1710827479457,-500.0,0.00055068,120]
[319528151,1710827479467,-930.89,0.00055068,120]
[319528152,1710827479479,-2420.63,0.00055068,120]
[319528153,1710827479488,-500.0,0.00055068,120]
[319528154,1710827479498,-529.45,0.00055068,120]
[319528155,1710827479507,-1756.75,0.00055068,120]
[319528156,1710827479517,-2235.16,0.00055068,120]
[319528157,1710827479526,-739.57,0.00055068,120]
[319528158,1710827479536,-500.0,0.00055068,7]
[319528159,1710827479546,-1794.47,0.00055068,120]
[319528160,1710827479555,-509.90165474,0.00055068,120]
[319528161,1710827479565,-500.0,0.00055068,120]
[319528162,1710827479575,-500.0,0.00055068,120]
[319528163,1710827479584,-3745.75,0.00055068,120]
[319528164,1710827479594,-1874.64,0.00055068,120]
[319528165,1710827479603,-613.74,0.00055068,120]
[319528166,1710827479614,-522.04,0.00055068,120]
[319528167,1710827479624,-500.0,0.00055068,120]
[319528168,1710827479634,-500.0,0.00055068,120]
[319528169,1710827479645,-500.0,0.00055068,120]
[319528170,1710827479656,-500.0,0.00055068,120]
[319528171,1710827479667,-500.0,0.00055068,120]
[319528172,1710827479677,-635.92,0.00055068,120]
[319528173,1710827479687,-800.0,0.00055093,120]
[319528174,1710827479697,-828.5076,0.000551,30]
[319528175,1710827479707,-471.5943,0.000551,30]
[319528176,1710827479718,-2476.713,0.000551,30]
[319528177,1710827479729,-151.3,0.00055108,2]
[319528178,1710827479739,-351.0,0.00055145,28]
[319528179,1710827479748,-151.031913,0.00055198,58]
[319528180,1710827479757,-153.0,0.00055205,120]
[319528181,1710827479770,-1135.206211,0.00055223,2]
[319528182,1710827479780,-2210.12674618,0.00055223,30]
[319528183,1710827479790,-925.72155825,0.00055223,120]
[319528184,1710827479800,-5076.69333454,0.00055223,2]
[319528185,1710827479811,-7037.7347789,0.00055304,2]
[319528186,1710827479821,-638.9465741,0.00055304,2]
[319528187,1710827479833,-5607.7622412,0.00055304,2]
[319528188,1710827479843,-172443.7788158,0.00055304,2]
[319528189,1710827479854,-188.88,0.00055311,5]
[319528190,1710827479864,-262.08197195,0.00055341,120]
[319528191,1710827479874,-500.0,0.00055342,2]
[319528192,1710827479883,-2000.0,0.00055342,120]
[319528193,1710827479893,-500.0,0.00055342,120]
[319528194,1710827479904,-500.0,0.00055342,120]
[319528195,1710827479914,-500.0,0.00055342,120]
[319528196,1710827479925,-500.0,0.00055342,120]
[319528197,1710827479935,-623.7191524,0.00055342,120]
[319528198,1710827479945,-500.0,0.00055342,120]
[319528199,1710827479955,-500.0,0.00055342,120]
[319528200,1710827479966,-500.0,0.00055342,120]
[319528201,1710827479981,-500.0,0.00055342,120]
[319528202,1710827479991,-502.89358725,0.00055342,120]
[319528203,1710827480002,-200.0,0.00055342,120]
[319528204,1710827480012,-500.0,0.00055342,120]
[319528205,1710827480023,-500.0,0.00055342,120]
[319528206,1710827480033,-507.22369816,0.00055342,120]
[319528207,1710827480044,-500.0,0.00055342,120]
[319528208,1710827480054,-500.0,0.00055342,120]
[319528209,1710827480066,-500.0,0.00055342,120]
[319528210,1710827480076,-500.0,0.00055342,120]
[319528211,1710827480086,-500.0,0.00055342,120]
[319528212,1710827480097,-500.0,0.00055342,120]
[319528213,1710827480107,-500.0,0.00055342,120]
[319528214,1710827480117,-500.0,0.00055342,120]
[319528215,1710827480127,-863.61,0.00055342,120]
[319528216,1710827480138,-500.0,0.00055342,120]
[319528217,1710827480148,-500.0,0.00055342,120]
[319528218,1710827480158,-158.58444716,0.00055342,120]
[319528219,1710827480168,-506.26,0.00055342,120]
[319528220,1710827480179,-500.0,0.00055342,120]
[319528221,1710827480189,-500.0,0.00055342,120]
[319528222,1710827480200,-500.0,0.00055342,120]
[319528223,1710827480210,-456.12449021,0.00055342,120]
[319528224,1710827480223,-500.0,0.00055342,120]
[319528225,1710827480233,-500.0,0.00055342,120]
[319528226,1710827480244,-500.0,0.00055342,120]
[319528227,1710827480254,-781.12,0.00055342,120]
[319528228,1710827480264,-500.0,0.00055342,120]
[319528229,1710827480274,-682.86,0.00055342,120]
[319528230,1710827480283,-1079.96,0.00055342,120]
[319528231,1710827480293,-500.0,0.00055342,120]
[319528232,1710827480303,-500.0,0.00055342,120]
[319528233,1710827480314,-500.0,0.00055342,120]
[319528234,1710827480324,-500.0,0.00055342,120]
[319528235,1710827480334,-500.0,0.00055342,120]
[319528236,1710827480345,-500.0,0.00055342,120]
[319528237,1710827480355,-500.0,0.00055342,120]
[319528238,1710827480365,-500.0,0.00055342,120]
[319528239,1710827480376,-500.0,0.00055342,120]
[319528240,1710827480386,-500.0,0.00055342,120]
[319528241,1710827480396,-500.0,0.00055342,120]
[319528242,1710827480406,-1218.62,0.00055342,120]
[319528243,1710827480415,-500.0,0.00055342,120]
[319528244,1710827480425,-500.0,0.00055342,120]
[319528245,1710827480436,-500.0,0.00055342,120]
[319528246,1710827480446,-605.79,0.00055342,120]
[319528247,1710827480456,-500.0,0.00055342,120]
[319528248,1710827480466,-801.78,0.00055342,120]
[319528249,1710827480481,-500.0,0.00055342,120]
[319528250,1710827480491,-500.0,0.00055342,120]
[319528251,1710827480501,-644.78,0.00055342,120]
[319528252,1710827480511,-1045.71,0.00055342,120]
[319528253,1710827480522,-500.0,0.00055342,120]
[319528254,1710827480532,-699.23,0.00055342,120]
[319528255,1710827480542,-500.0,0.00055342,120]
[319528256,1710827480552,-533.66,0.00055342,120]
[319528257,1710827480562,-500.0,0.00055342,120]
[319528258,1710827480572,-500.0,0.00055342,120]
[319528259,1710827480583,-500.0,0.00055342,120]
[319528260,1710827480593,-500.0,0.00055342,120]
[319528261,1710827480604,-500.0,0.00055342,120]
[319528262,1710827480613,-749.29,0.00055342,120]
[319528263,1710827480623,-1081.0,0.00055342,120]
[319528264,1710827480634,-796.97,0.00055342,120]
[319528265,1710827480644,-557.5,0.00055342,120]
[319528266,1710827480654,-500.0,0.00055342,120]
[319528267,1710827480665,-240.8305438,0.00055342,120]
[319528268,1710827480675,-500.0,0.00055342,120]
[319528269,1710827480686,-500.0,0.00055342,120]
[319528270,1710827480697,-368.39441583,0.00055342,120]
[319528271,1710827480707,-500.0,0.00055342,120]
[319528272,1710827480717,-1141.1,0.00055342,120]
[319528273,1710827480732,-500.0,0.00055342,120]
[319528274,1710827480743,-536.3,0.00055342,120]
[319528275,1710827480753,-500.0,0.00055342,120]
[319528276,1710827480765,-500.0,0.00055342,120]
[319528277,1710827480776,-500.0,0.00055342,120]
[319528278,1710827480787,-500.0,0.00055342,120]
[319528279,1710827480797,-500.0,0.00055342,120]
[319528280,1710827480809,-500.0,0.00055342,120]
[319528281,1710827480819,-500.0,0.00055342,120]
[319528282,1710827480830,-500.0,0.00055342,120]
[319528283,1710827480840,-500.0,0.00055342,120]
[319528284,1710827480850,-864.62,0.00055342,120]
[319528285,1710827480860,-500.0,0.00055342,120]
[319528286,1710827480869,-614.04,0.00055342,120]
[319528287,1710827480879,-699.92,0.00055342,120]
[319528288,1710827480889,-500.0,0.00055342,120]
[319528289,1710827480900,-500.0,0.00055342,120]
[319528290,1710827480910,-1727.86,0.00055342,120]
[319528291,1710827480920,-500.0,0.00055342,120]
[319528292,1710827480930,-583.92,0.00055342,120]
[319528293,1710827480941,-698.08,0.00055342,120]
[319528294,1710827480952,-513.11,0.00055342,120]
[319528295,1710827480962,-500.0,0.00055342,120]
[319528296,1710827480976,-543.31,0.00055342,120]
[319528297,1710827480986,-500.0,0.00055342,120]
[319528298,1710827480997,-921.53,0.00055342,120]
[319528299,1710827481007,-500.0,0.00055342,120]
[319528300,1710827481017,-2149.92,0.00055342,120]
[319528301,1710827481027,-500.0,0.00055342,120]
[319528302,1710827481037,-500.0,0.00055342,120]
[319528303,1710827481047,-500.0,0.00055342,120]
[319528304,1710827481057,-500.0,0.00055342,120]
[319528305,1710827481067,-500.0,0.00055342,120]
[319528306,1710827481077,-500.0,0.00055342,120]
[319528307,1710827481087,-676.27,0.00055342,120]
[319528308,1710827481098,-500.0,0.00055342,120]
[319528309,1710827481107,-632.4,0.00055342,120]
[319528310,1710827481117,-563.25,0.00055342,120]
[319528311,1710827481127,-500.0,0.00055342,120]
[319528312,1710827481137,-500.0,0.00055342,120]
[319528313,1710827481147,-265.08414156,0.00055342,120]
[319528314,1710827481157,-570.85,0.00055342,120]
[319528315,1710827481167,-500.0,0.00055342,120]
[319528316,1710827481177,-821.94,0.00055342,120]
[319528317,1710827481187,-500.0,0.00055342,120]
[319528318,1710827481197,-500.0,0.00055342,120]
[319528319,1710827481206,-500.0,0.00055342,120]
[319528320,1710827481216,-500.0,0.00055342,120]
[319528321,1710827481228,-519.04,0.00055342,120]
[319528322,1710827481238,-510.59667061,0.00055342,120]
[319528323,1710827481248,-500.0,0.00055342,120]
[319528324,1710827481259,-761.67,0.00055342,120]
[319528325,1710827481269,-500.0,0.00055342,120]
[319528326,1710827481279,-500.0,0.00055342,120]
[319528327,1710827481289,-500.0,0.00055342,120]
[319528328,1710827481299,-500.0,0.00055342,120]
[319528329,1710827481309,-759.95,0.00055342,120]
[319528330,1710827481320,-657.17,0.00055342,120]
[319528331,1710827481330,-668.5,0.00055342,120]
[319528332,1710827481339,-730.23,0.00055342,120]
[319528333,1710827481349,-1907.86,0.00055342,120]
[319528334,1710827481359,-361.62796665,0.00055342,120]
[319528335,1710827481372,-500.0,0.00055342,120]
[319528336,1710827481382,-500.0,0.00055342,120]
[319528337,1710827481392,-500.0,0.00055342,120]
[319528338,1710827481402,-500.0,0.00055342,120]
[319528339,1710827481412,-500.0,0.00055342,120]
[319528340,1710827481422,-500.0,0.00055342,120]
[319528341,1710827481432,-500.0,0.00055342,120]
[319528342,1710827481442,-500.0,0.00055342,120]
[319528343,1710827481452,-1563.52,0.00055342,120]
[319528344,1710827481463,-500.0,0.00055342,120]
[319528345,1710827481477,-557.59,0.00055342,120]
[319528346,1710827481486,-905.54,0.00055342,120]
[319528347,1710827481496,-515.41153555,0.00055342,120]
[319528348,1710827481506,-500.0,0.00055342,120]
[319528349,1710827481516,-857.79,0.00055342,120]
[319528350,1710827481525,-500.0,0.00055342,120]
[319528351,1710827481536,-500.0,0.00055342,120]
[319528352,1710827481546,-500.0,0.00055342,120]
[319528353,1710827481556,-500.0,0.00055342,120]
[319528354,1710827481567,-500.0,0.00055342,120]
[319528355,1710827481577,-500.0,0.00055342,120]
[319528356,1710827481588,-500.0,0.00055342,120]
[319528357,1710827481599,-1016.7,0.00055342,120]
[319528358,1710827481690,-166.35,0.00055342,120]
[319528359,1710827481701,-633.93567584,0.00055342,120]
[319528360,1710827481712,-500.0,0.00055342,120]
[319528361,1710827481724,-524.54,0.00055342,120]
[319528362,1710827481734,-500.0,0.00055342,120]
[319528363,1710827481744,-500.0,0.00055342,120]
[319528364,1710827481755,-645.51,0.00055342,120]
[319528365,1710827481766,-500.0,0.00055342,120]
[319528366,1710827481778,-500.0,0.00055342,120]
[319528367,1710827481787,-500.0,0.00055342,120]
[319528368,1710827481798,-181.61,0.00055342,120]
[319528369,1710827481808,-500.0,0.00055342,120]
[319528370,1710827481820,-1500.0,0.00055342,120]
[319528371,1710827481830,-500.0,0.00055342,120]
[319528372,1710827481839,-500.0,0.00055342,120]
[319528373,1710827481852,-359.52,0.00055342,120]
[319528374,1710827481863,-500.0,0.00055342,120]
[319528375,1710827481873,-500.0,0.00055342,120]
[319528376,1710827481884,-500.0,0.00055342,120]
[319528377,1710827481893,-190.10077413,0.00055342,120]
[319528378,1710827481903,-500.0,0.00055342,120]
[319528379,1710827481912,-500.0,0.00055342,120]
[319528380,1710827481923,-500.0,0.00055342,120]
[319528381,1710827481932,-500.0,0.00055342,120]
[319528382,1710827481942,-500.0,0.00055342,120]
[319528383,1710827481950,-500.0,0.00055342,120]
[319528384,1710827481960,-500.0,0.00055342,120]
[319528385,1710827481971,-500.0,0.00055342,120]
[319528386,1710827481984,-500.0,0.00055342,120]
[319528387,1710827481994,-500.0,0.00055342,120]
[319528388,1710827482003,-500.0,0.00055342,120]
[319528389,1710827482013,-500.0,0.00055342,120]
[319528390,1710827482023,-500.0,0.00055342,120]
[319528391,1710827482033,-1025.32,0.00055342,120]
[319528392,1710827482044,-561.09,0.00055342,120]
[319528393,1710827482053,-571.37,0.00055342,120]
[319528394,1710827482063,-500.0,0.00055342,120]
[319528395,1710827482073,-752.74,0.00055342,120]
[319528396,1710827482083,-500.0,0.00055342,120]
[319528397,1710827482093,-500.0,0.00055342,120]
[319528398,1710827482103,-931.29,0.00055342,120]
[319528399,1710827482112,-500.0,0.00055342,120]
[319528400,1710827482123,-500.0,0.00055342,120]
[319528401,1710827482132,-500.0,0.00055342,120]
[319528402,1710827482143,-563.82,0.00055342,120]
[319528403,1710827482152,-423.3726179,0.00055342,120]
[319528404,1710827482164,-643.92,0.00055342,120]
[319528405,1710827482173,-500.0,0.00055342,120]
[319528406,1710827482183,-500.0,0.00055342,120]
[319528407,1710827482192,-500.0,0.00055342,120]
[319528408,1710827482201,-500.0,0.00055342,120]
[319528409,1710827482211,-652.21,0.00055342,120]
[319528410,1710827482222,-500.0,0.00055342,120]
[319528411,1710827482234,-500.0,0.00055342,120]
[319528412,1710827482243,-500.0,0.00055342,120]
[319528413,1710827482252,-500.0,0.00055342,120]
[319528414,1710827482261,-503.72532194,0.00055342,120]
[319528415,1710827482271,-500.0,0.00055342,120]
[319528416,1710827482280,-500.0,0.00055342,120]
[319528417,1710827482289,-500.0,0.00055342,120]
[319528418,1710827482299,-500.0,0.00055342,120]
[319528419,1710827482308,-500.0,0.00055342,120]
[319528420,1710827482318,-500.0,0.00055342,2]
[319528421,1710827482327,-500.0,0.00055342,120]
[319528422,1710827482336,-500.0,0.00055342,120]
[319528423,1710827482345,-500.0,0.00055342,120]
[319528424,1710827482354,-500.0,0.00055342,120]
[319528425,1710827482363,-500.0,0.00055342,120]
[319528426,1710827482372,-1427.61,0.00055342,120]
[319528427,1710827482382,-500.0,0.00055342,120]
[319528428,1710827482391,-501.24062161,0.00055342,120]
[319528429,1710827482400,-890.66,0.00055342,120]